fUSD/lending_fUSD_20250414
["ID","MTS","AMOUNT","RATE_DAILY","PERIOD"]
[357949273,1744612121933,250.0,0.00018641,2]
[357949288,1744612231396,-250.0,0.0001868,2]
[357949289,1744612231405,-250.0,0.00018784,2]
[357949290,1744612231413,-300.0,0.00018888,2]
[357949291,1744612231421,-300.0,0.00018888,2]
[357949292,1744612231430,-3067.12112149,0.00018889,2]
[357949293,1744612231539,-12978.36948936,0.00018889,2]
[357949294,1744612231612,-2224.60938915,0.00018889,2]
[357949295,1744612231622,-250.0,0.00018889,2]
[357949296,1744612231632,-680.13,0.00018975,2]
[357949297,1744612231644,-331.6909443,0.00019,2]
[357949298,1744612231659,-4348.34866586,0.00019,2]
[357949456,1744612237675,-6719.96038984,0.00019,2]
[357949457,1744612237685,-250.0,0.00019,2]
[357949458,1744612237694,-1482.73103806,0.000191,2]
[357949459,1744612237704,-383.96168975,0.00019177,2]
[357949460,1744612237714,-500.0,0.00019178,2]
[357949461,1744612237725,-626.60816572,0.00019178,2]
[357949462,1744612237735,-460.26216967,0.00019178,2]
[357949463,1744612237744,-500.0,0.00019178,2]
[357949464,1744612237753,-538.68234339,0.00019178,2]
[357949465,1744612237763,-568.89173101,0.00019178,2]
[357949467,1744612237772,-521.80022286,0.00019178,2]
[357949469,1744612237782,-509.70222696,0.00019178,2]
[357949471,1744612237792,-605.10716523,0.00019178,2]
[357949473,1744612237801,-550.11733968,0.00019178,2]
[357949475,1744612237810,-511.39764188,0.00019178,2]
[357949476,1744612237819,-299.4431764,0.00019178,2]
[357949479,1744612237829,-529.97231892,0.00019178,2]
[357949481,1744612237839,-521.11706043,0.00019178,2]
[357949482,1744612237849,-532.92732066,0.00019178,2]
[357949484,1744612237859,-513.20266798,0.00019178,2]
[357949486,1744612237869,-518.57703926,0.00019178,2]
[357949488,1744612237878,-500.0,0.00019178,2]
[357949490,1744612237887,-500.0,0.00019178,2]
[357949492,1744612237896,-511.34136429,0.00019178,2]
[357949494,1744612237905,-565.57103892,0.00019178,2]
[357949496,1744612237915,-608.0779036,0.00019178,2]
[357949498,1744612237924,-500.0,0.00019178,2]
[357949500,1744612237933,-552.36,0.00019178,2]
[357949502,1744612237942,-500.0,0.00019178,2]
[357949504,1744612237952,-500.0,0.00019178,2]
[357949506,1744612237961,-500.0,0.00019178,2]
[357949508,1744612237970,-500.0,0.00019178,2]
[357949510,1744612237980,-184.18302994,0.00019178,2]
[357949512,1744612237989,-628.19210448,0.00019178,2]
[357949514,1744612237999,-526.96041092,0.00019178,2]
[357949516,1744612238010,-500.0,0.00019178,2]
[357949517,1744612238019,-500.0,0.00019178,2]
[357949519,1744612238029,-524.15520614,0.00019178,2]
[357949521,1744612238038,-500.0,0.00019178,2]
[357949523,1744612238048,-500.0,0.00019178,2]
[357949525,1744612238057,-500.0,0.00019178,2]
[357949527,1744612238066,-500.0,0.00019178,2]
[357949529,1744612238075,-500.0,0.00019178,2]
[357949531,1744612238084,-500.0,0.00019178,2]
[357949533,1744612238094,-543.67831194,0.00019178,2]
[357949535,1744612238103,-500.0,0.00019178,2]
[357949537,1744612238113,-398.0934683,0.00019178,2]
[357949539,1744612238123,-500.0,0.00019178,2]
[357949541,1744612238132,-517.87552094,0.00019178,2]
[357949543,1744612238141,-500.0,0.00019178,2]
[357949545,1744612238150,-465.51,0.00019178,2]
[357949547,1744612238159,-500.0,0.00019178,2]
[357949549,1744612238168,-500.0,0.00019178,2]
[357949551,1744612238177,-260.30006173,0.00019178,2]
[357949553,1744612238187,-500.0,0.00019178,2]
[357949555,1744612238196,-500.0,0.00019178,2]
[357949557,1744612238205,-500.0,0.00019178,2]
[357949559,1744612238215,-500.0,0.00019178,2]
[357949561,1744612238224,-500.0,0.00019178,2]
[357949563,1744612238233,-500.0,0.00019178,2]
[357949565,1744612238242,-500.0,0.00019178,2]
[357949567,1744612238251,-417.78672973,0.00019178,2]
[357949569,1744612238260,-500.0,0.00019178,2]
[357949571,1744612238270,-500.0,0.00019178,2]
[357949573,1744612238279,-500.0,0.00019178,2]
[357949575,1744612238288,-552.34,0.00019178,2]
[357949577,1744612238297,-373.47178315,0.00019178,2]
[357949578,1744612238306,-500.0,0.00019178,2]
[357949580,1744612238315,-500.0,0.00019178,2]
[357949582,1744612238324,-500.0,0.00019178,2]
[357949584,1744612238333,-500.0,0.00019178,2]
[357949586,1744612238343,-500.0,0.00019178,2]
[357949587,1744612238352,-500.0,0.00019178,2]
[357949588,1744612238362,-234.46894975,0.00019178,2]
[357949589,1744612238375,-265.53105025,0.00019178,2]
[357949590,1744612238384,-500.0,0.00019178,2]
[357949591,1744612238393,-500.0,0.00019178,2]
[357949592,1744612238403,-180.34248164,0.00019178,2]
[357949597,1744612239589,-319.65751836,0.00019178,2]
[357949598,1744612239598,-162.74237369,0.00019178,2]
[357949599,1744612239607,-500.0,0.00019178,2]
[357949600,1744612239617,-500.0,0.00019178,2]
[357949601,1744612239626,-484.19959971,0.00019178,2]
[357949602,1744612239635,-500.0,0.00019178,2]
[357949603,1744612239648,-287.6,0.00019178,2]
[357949604,1744612239658,-648.82,0.00019178,2]
[357949605,1744612239667,-500.0,0.00019178,2]
[357949606,1744612239676,-500.0,0.00019178,2]
[357949607,1744612239687,-500.0,0.00019178,2]
[357949608,1744612239696,-500.0,0.00019178,2]
[357949609,1744612239705,-322.54,0.00019178,2]
[357949610,1744612239714,-500.0,0.00019178,2]
[357949611,1744612239725,-419.36351243,0.00019178,2]
[357949612,1744612239734,-567.19685884,0.00019178,2]
[357949613,1744612239743,-500.0,0.00019178,2]
[357949614,1744612239752,-189.5567097,0.00019178,2]
[357949615,1744612239764,-342.75129017,0.00019178,2]
[357949616,1744612239773,-500.0,0.00019178,2]
[357949617,1744612239781,-191.92750983,0.00019178,2]
[357949618,1744612239796,-9.25016303,0.00019178,2]
[357949619,1744612239806,-500.0,0.00019178,2]
[357949620,1744612239815,-500.0,0.00019178,2]
[357949621,1744612239827,-500.0,0.00019178,2]
[357949622,1744612239836,-500.0,0.00019178,2]
[357949623,1744612239845,-34.70977783,0.00019178,2]
[357949624,1744612239864,-465.29022217,0.00019178,2]
[357949625,1744612239873,-500.0,0.00019178,2]
[357949626,1744612239882,-500.0,0.00019178,2]
[357949627,1744612239891,-500.0,0.00019178,2]
[357949628,1744612239900,-319.11,0.00019178,2]
[357949629,1744612239909,-561.66127736,0.00019178,2]
[357949630,1744612239918,-500.0,0.00019178,2]
[357949631,1744612239929,-500.0,0.00019178,2]
[357949632,1744612239938,-500.0,0.00019178,2]
[357949633,1744612239947,-708.09,0.00019178,2]
[357949634,1744612239955,-550.9226033,0.00019178,2]
[357949635,1744612239964,-524.6937429,0.00019178,2]
[357949636,1744612239974,-500.0,0.00019178,2]
[357949637,1744612239983,-525.34606674,0.00019178,2]
[357949638,1744612239993,-225.97,0.00019178,2]
[357949639,1744612240003,-500.0,0.00019178,2]
[357949640,1744612240012,-500.0,0.00019178,2]
[357949641,1744612240022,-500.0,0.00019178,2]
[357949642,1744612240032,-500.0,0.00019178,2]
[357949643,1744612240042,-179.04274912,0.00019178,2]
[357949644,1744612240052,-587.01,0.00019178,2]
[357949645,1744612240062,-500.0,0.00019178,2]
[357949646,1744612240073,-500.0,0.00019178,2]
[357949652,1744612240291,-593.5,0.00019178,2]
[357949653,1744612240302,-481.77253916,0.00019178,2]
[357949654,1744612240312,-500.0,0.00019178,2]
[357949655,1744612240321,-1388.36,0.00019178,2]
[357949656,1744612240331,-500.0,0.00019178,2]
[357949657,1744612240340,-493.93,0.00019178,2]
[357949658,1744612240349,-500.0,0.00019178,2]
[357949659,1744612240359,-500.0,0.00019178,2]
[357949660,1744612240369,-500.0,0.00019178,2]
[357949661,1744612240378,-500.0,0.00019178,2]
[357949662,1744612240387,-500.0,0.00019178,2]
[357949663,1744612240396,-500.0,0.00019178,2]
[357949664,1744612240406,-500.0,0.00019178,2]
[357949665,1744612240415,-338.32,0.00019178,2]
[357949666,1744612240425,-500.0,0.00019178,2]
[357949667,1744612240434,-500.0,0.00019178,2]
[357949668,1744612240444,-500.0,0.00019178,2]
[357949669,1744612240454,-500.0,0.00019178,2]
[357949670,1744612240463,-500.0,0.00019178,2]
[357949671,1744612240472,-500.0,0.00019178,2]
[357949672,1744612240482,-500.0,0.00019178,2]
[357949673,1744612240491,-535.58,0.00019178,2]
[357949674,1744612240687,-500.0,0.00019178,2]
[357949675,1744612240696,-500.0,0.00019178,2]
[357949676,1744612240706,-500.0,0.00019178,2]
[357949677,1744612240716,-500.0,0.00019178,2]
[357949678,1744612240726,-534.27,0.00019178,2]
[357949679,1744612240735,-308.93,0.00019178,2]
[357949680,1744612240744,-500.0,0.00019178,2]
[357949681,1744612240753,-500.0,0.00019178,2]
[357949682,1744612240762,-626.93,0.00019178,2]
[357949683,1744612240773,-500.0,0.00019178,2]
[357949684,1744612240782,-500.0,0.00019178,2]
[357949685,1744612240791,-500.0,0.00019178,2]
[357949686,1744612240800,-500.0,0.00019178,2]
[357949687,1744612240810,-500.0,0.00019178,2]
[357949688,1744612240819,-500.0,0.00019178,2]
[357949689,1744612240828,-500.0,0.00019178,2]
[357949690,1744612240838,-500.0,0.00019178,2]
[357949691,1744612240847,-500.0,0.00019178,2]
[357949692,1744612240856,-500.0,0.00019178,2]
[357949693,1744612240866,-500.0,0.00019178,2]
[357949694,1744612240875,-267.07383655,0.00019178,2]
[357949695,1744612240884,-435.39932988,0.00019178,2]
[357949696,1744612240893,-470.0,0.00019178,2]
[357949697,1744612240902,-500.0,0.00019178,2]
[357949698,1744612240911,-500.0,0.00019178,2]
[357949699,1744612240920,-500.0,0.00019178,2]
[357949700,1744612240929,-367.66,0.00019178,2]
[357949701,1744612240938,-577.70552729,0.00019178,2]
[357949702,1744612240948,-500.0,0.00019178,2]
[357949703,1744612240958,-500.0,0.00019178,2]
[357949704,1744612240968,-500.0,0.00019178,2]
[357949705,1744612240977,-500.0,0.00019178,2]
[357949706,1744612240986,-500.0,0.00019178,2]
[357949707,1744612240995,-500.0,0.00019178,2]
[357949708,1744612241004,-500.0,0.00019178,2]
[357949709,1744612241013,-600.0,0.00019178,2]
[357949710,1744612241023,-581.07,0.00019178,2]
[357949711,1744612241032,-294.09177355,0.00019178,2]
[357949712,1744612241041,-500.0,0.00019178,2]
[357949713,1744612241050,-385.19170554,0.00019178,2]
[357949714,1744612241059,-596.69,0.00019178,2]
[357949715,1744612241069,-500.0,0.00019178,2]
[357949716,1744612241078,-500.0,0.00019178,2]
[357949717,1744612241088,-500.0,0.00019178,2]
[357949718,1744612241097,-500.0,0.00019178,2]
[357949719,1744612241106,-500.0,0.00019178,2]
[357949720,1744612241116,-500.0,0.00019178,2]
[357949721,1744612241125,-500.0,0.00019178,2]
[357949722,1744612241134,-500.0,0.00019178,2]
[357949723,1744612241143,-500.0,0.00019178,2]
[357949724,1744612241152,-533.91970149,0.00019178,2]
[357949725,1744612241161,-764.9,0.00019178,2]
[357949726,1744612241170,-500.0,0.00019178,2]
[357949727,1744612241180,-500.0,0.00019178,2]
[357949728,1744612241189,-500.0,0.00019178,2]
[357949729,1744612241199,-1000.0,0.00019178,2]
[357949730,1744612241208,-500.0,0.00019178,2]
[357949731,1744612241218,-500.0,0.00019178,2]
[357949732,1744612241227,-12605.12,0.00019178,2]
[357949733,1744612241237,-500.0,0.00019178,2]
[357949734,1744612241247,-500.0,0.00019178,2]
[357949735,1744612241256,-1620.01,0.00019178,2]
[357949736,1744612241265,-238.18,0.00019178,2]
[357949737,1744612241275,-572.6390722,0.00019178,2]
[357949738,1744612241285,-500.0,0.00019178,2]
[357949739,1744612241294,-500.0,0.00019178,2]
[357949740,1744612241303,-500.0,0.00019178,2]
[357949741,1744612241313,-588.44,0.00019178,2]
[357949742,1744612241322,-308.34143406,0.00019178,2]
[357949743,1744612241331,-300.90561804,0.00019178,2]
[357949744,1744612241341,-234.67555302,0.00019178,2]
[357949745,1744612241350,-167.84,0.00019216,2]
[357949746,1744612241360,-500.0,0.00019233,2]
[357949747,1744612241369,-500.0,0.00019288,2]
[357949748,1744612241378,-317.43984477,0.00019302,2]
[357949749,1744612241387,-500.0,0.00019342,2]
[357949750,1744612241397,-500.19849729,0.00019352,2]
[357949751,1744612241406,-500.0,0.0001936,2]
[357949752,1744612241416,-500.0,0.00019397,2]
[357949753,1744612241426,-985.64829769,0.000194,2]
[357949754,1744612241435,-500.0,0.00019452,2]
[357949755,1744612241445,-372.54,0.00019452,2]
[357949756,1744612241456,-500.0,0.00019452,2]
[357949757,1744612241466,-500.0,0.00019452,2]
[357949758,1744612241476,-500.0,0.00019452,2]
[357949759,1744612241486,-233.67640001,0.00019452,2]
[357949760,1744612241495,-500.0,0.00019452,2]
[357949761,1744612241504,-539.43519801,0.00019452,2]
[357949762,1744612241513,-500.0,0.00019452,2]
[357949763,1744612241523,-560.46429187,0.00019452,2]
[357949764,1744612241532,-500.0,0.00019452,2]
[357949765,1744612241541,-500.0,0.00019452,2]
[357949766,1744612241550,-500.0,0.00019452,2]
[357949767,1744612241559,-500.0,0.00019452,2]
[357949768,1744612241568,-500.0,0.00019452,2]
[357949769,1744612241577,-500.0,0.00019452,2]
[357949770,1744612241587,-500.0,0.00019452,2]
[357949771,1744612241596,-500.0,0.00019452,2]
[357949772,1744612241605,-500.0,0.00019452,2]
[357949773,1744612241614,-500.0,0.00019452,2]
[357949774,1744612241623,-500.0,0.00019452,2]
[357949775,1744612241632,-500.0,0.00019452,2]
[357949776,1744612241642,-500.0,0.00019452,2]
[357949777,1744612241655,-195.45490257,0.00019452,2]
[357949778,1744612241664,-373.34301307,0.00019452,2]
[357949779,1744612241673,-500.0,0.00019452,2]
[357949780,1744612241683,-290.5,0.00019452,2]
[357949781,1744612241693,-500.0,0.00019452,2]
[357949782,1744612241703,-500.0,0.00019452,2]
[357949783,1744612241712,-578.54,0.00019452,2]
[357949784,1744612241723,-500.0,0.00019452,2]
[357949785,1744612241733,-708.09,0.00019452,2]
[357949786,1744612241742,-500.0,0.00019452,2]
[357949787,1744612241751,-500.0,0.00019452,2]
[357949788,1744612241761,-524.85605284,0.00019452,2]
[357949789,1744612241770,-160.0409019,0.00019452,2]
[357949790,1744612241779,-413.25298056,0.00019452,2]
[357949791,1744612241789,-319.67251424,0.00019452,2]
[357949792,1744612241798,-523.42927667,0.00019452,2]
[357949793,1744612241807,-1388.36,0.00019452,2]
[357949794,1744612241817,-500.0,0.00019452,2]
[357949795,1744612241826,-500.0,0.00019452,2]
[357949796,1744612241835,-500.0,0.00019452,2]
[357949797,1744612241845,-500.0,0.00019452,2]
[357949798,1744612241855,-500.0,0.00019452,2]
[357949799,1744612241864,-500.0,0.00019452,2]
[357949800,1744612241874,-500.0,0.00019452,2]
[357949801,1744612241883,-500.0,0.00019452,2]
[357949802,1744612241893,-550.92627383,0.00019452,2]
[357949803,1744612241902,-500.0,0.00019452,2]
[357949804,1744612241912,-167.38,0.00019452,2]
[357949805,1744612241922,-500.0,0.00019452,2]
[357949806,1744612241931,-500.0,0.00019452,2]
[357949807,1744612241940,-534.27,0.00019452,2]
[357949808,1744612241952,-479.43356936,0.00019452,2]
[357949809,1744612241961,-500.0,0.00019452,2]
[357949810,1744612241971,-626.93,0.00019452,2]
[357949811,1744612241981,-500.0,0.00019452,2]
[357949812,1744612241991,-500.0,0.00019452,2]
[357949813,1744612242000,-500.0,0.00019452,2]
[357949814,1744612242009,-500.0,0.00019452,2]
[357949815,1744612242019,-500.0,0.00019452,2]
[357949816,1744612242028,-572.24,0.00019452,2]
[357949817,1744612242037,-500.0,0.00019452,2]
[357949818,1744612242047,-500.0,0.00019452,2]
[357949819,1744612242056,-500.0,0.00019452,2]
[357949820,1744612242066,-500.0,0.00019452,2]
[357949821,1744612242075,-500.0,0.00019452,2]
[357949822,1744612242084,-500.0,0.00019452,2]
[357949823,1744612242093,-500.0,0.00019452,2]
[357949824,1744612242103,-500.0,0.00019452,2]
[357949825,1744612242112,-500.0,0.00019452,2]
[357949826,1744612242121,-589.51667284,0.00019452,2]
[357949827,1744612242131,-581.07,0.00019452,2]
[357949828,1744612242140,-500.0,0.00019452,2]
[357949829,1744612242149,-500.0,0.00019452,2]
[357949830,1744612242159,-500.0,0.00019452,2]
[357949831,1744612242168,-500.0,0.00019452,2]
[357949832,1744612242176,-500.0,0.00019452,2]
[357949833,1744612242185,-764.9,0.00019452,2]
[357949834,1744612242194,-288.57300246,0.00019452,2]
[357949835,1744612242204,-500.0,0.00019452,2]
[357949836,1744612242213,-500.0,0.00019452,2]
[357949837,1744612242223,-12605.12,0.00019452,2]
[357949838,1744612242233,-152.24,0.00019452,2]
[357949839,1744612242242,-1620.01,0.00019452,2]
[357949840,1744612242251,-500.0,0.00019452,2]
[357949841,1744612242260,-500.0,0.00019452,2]
[357949842,1744612242269,-588.44,0.00019452,2]
[357949843,1744612242278,-500.19849729,0.00019489,2]
[357949844,1744612242288,-2500.0,0.000196,2]
[357949845,1744612242297,-387.3289757,0.00019604,2]
[357949846,1744612242307,-209.0,0.0001961,2]
[357949847,1744612242316,-500.19849729,0.00019626,2]
[357949848,1744612242326,-3200.34510917,0.00019691,2]
[357949849,1744612242335,-3200.34510917,0.00019693,2]
[357949850,1744612242345,-5467.540257,0.000197,2]
[357949851,1744612242354,-500.35,0.00019726,2]
[357949852,1744612242363,-500.0,0.00019726,2]
[357949853,1744612242373,-500.0,0.00019726,2]
[357949854,1744612242382,-500.0,0.00019726,2]
[357949856,1744612242391,-500.0,0.00019726,2]
[357949858,1744612242400,-500.0,0.00019726,2]
[357949860,1744612242410,-500.0,0.00019726,2]
[357949862,1744612242420,-500.0,0.00019726,2]
[357949863,1744612242428,-162.43,0.00019726,2]
[357949864,1744612242438,-500.0,0.00019726,2]
[357949865,1744612242447,-500.0,0.00019726,2]
[357949866,1744612242458,-500.0,0.00019726,2]
[357949867,1744612242467,-500.0,0.00019726,2]
[357949868,1744612242476,-500.0,0.00019726,2]
[357949869,1744612242486,-500.0,0.00019726,2]
[357949870,1744612242495,-377.86777853,0.00019726,2]
[357949871,1744612242504,-500.0,0.00019726,2]
[357949872,1744612242513,-500.0,0.00019726,2]
[357949873,1744612242522,-500.0,0.00019726,2]
[357949874,1744612242531,-500.0,0.00019726,2]
[357949875,1744612242540,-500.0,0.00019726,2]
[357949876,1744612242550,-500.0,0.00019726,2]
[357949877,1744612242559,-500.0,0.00019726,2]
[357949878,1744612242568,-272.73199122,0.00019726,2]
[357949879,1744612242577,-708.09,0.00019726,2]
[357949880,1744612242586,-593.02747464,0.00019726,2]
[357949881,1744612242595,-500.0,0.00019726,2]
[357949882,1744612242604,-1388.36,0.00019726,2]
[357949883,1744612242613,-500.0,0.00019726,2]
[357949884,1744612242622,-500.0,0.00019726,2]
[357949885,1744612242632,-500.0,0.00019726,2]
[357949886,1744612242641,-500.0,0.00019726,2]
[357949887,1744612242655,-500.0,0.00019726,2]
[357949888,1744612242664,-500.0,0.00019726,2]
[357949889,1744612242673,-500.0,0.00019726,2]
[357949890,1744612242683,-500.0,0.00019726,2]
[357949891,1744612242692,-500.0,0.00019726,2]
[357949892,1744612242702,-500.0,0.00019726,2]
[357949893,1744612242711,-500.0,0.00019726,2]
[357949894,1744612242720,-534.27,0.00019726,2]
[357949895,1744612242731,-500.0,0.00019726,2]
[357949896,1744612242741,-626.93,0.00019726,2]
[357949897,1744612242751,-500.0,0.00019726,2]
[357949898,1744612242760,-500.0,0.00019726,2]
[357949899,1744612242779,-500.0,0.00019726,2]
[357949900,1744612242790,-500.0,0.00019726,2]
[357949901,1744612242800,-500.0,0.00019726,2]
[357949902,1744612242810,-500.0,0.00019726,2]
[357949903,1744612242820,-500.0,0.00019726,2]
[357949904,1744612242830,-500.0,0.00019726,2]
[357949905,1744612242839,-643.04300323,0.00019726,2]
[357949906,1744612242849,-500.0,0.00019726,2]
[357949907,1744612242859,-500.0,0.00019726,2]
[357949908,1744612242868,-500.0,0.00019726,2]
[357949909,1744612242878,-230.62,0.00019726,2]
[357949910,1744612242887,-399.8,0.00019726,2]
[357949911,1744612242898,-581.07,0.00019726,2]
[357949912,1744612242907,-500.0,0.00019726,2]
[357949913,1744612242918,-500.0,0.00019726,2]
[357949915,1744612242928,-589.12,0.00019726,2]
[357949916,1744612242938,-500.0,0.00019726,2]
[357949917,1744612242948,-764.9,0.00019726,2]
[357949918,1744612242958,-500.0,0.00019726,2]
[357949919,1744612242967,-500.0,0.00019726,2]
[357949920,1744612242977,-12605.12,0.00019726,2]
[357949921,1744612242986,-1620.01,0.00019726,2]
[357949922,1744612242996,-200.14,0.00019726,2]
[357949923,1744612243005,-588.44,0.00019726,2]
[357949924,1744612243015,-3200.34510917,0.00019727,2]
[357949925,1744612243024,-500.19849729,0.00019763,2]
[357949926,1744612243034,-853.851,0.00019782,2]
[357949927,1744612243043,-1027.201914,0.00019799,2]
[357949928,1744612243053,-263.0498,0.000198,2]
[357949929,1744612243063,-300.7688,0.000198,2]
[357949930,1744612243072,-209.0,0.000198,2]
[357949931,1744612243082,-387.32897571,0.00019844,2]
[357949932,1744612243091,-1217.21778427,0.00019879,2]
[357949933,1744612243101,-1217.21778427,0.00019882,2]
[357949934,1744612243110,-1217.21778427,0.00019885,2]
[357949935,1744612243120,-1217.21778427,0.00019888,2]
[357949936,1744612243131,-1217.21778427,0.00019891,2]
[357949937,1744612243140,-1217.21778427,0.00019894,2]
[357949938,1744612243150,-1217.21778427,0.00019897,2]
[357949939,1744612243159,-500.0,0.00019899,2]
[357949940,1744612243169,-159.98608336,0.000199,2]
[357949941,1744612243179,-409.48630944,0.000199,2]
[357949942,1744612243189,-377.08011331,0.000199,2]
[357949943,1744612243199,-1217.21778427,0.000199,2]
[357949944,1744612243208,-194.36210043,0.000199,2]
[357949945,1744612243218,-500.19849729,0.000199,2]
[357949946,1744612243228,-188.96751297,0.000199,2]
[357949947,1744612243238,-53248.68162649,0.000199,2]
[357949948,1744612243247,-168.90478809,0.000199,2]
[357949949,1744612243257,-46582.60216364,0.00019954,2]
[357949950,1744612243266,-8898.0,0.00019973,2]
[357949951,1744612243275,-504.53095867,0.00019973,2]
[357949952,1744612243284,-500.0,0.00019973,2]
[357949953,1744612243294,-160.9476933,0.00019973,2]
[357949954,1744612243304,-3717.0,0.0001999,2]
[357949955,1744612243313,-209.0,0.0001999,2]
[357949956,1744612243322,-194.12975249,0.0001999,2]
[357949957,1744612243332,-1501.45449669,0.00019998,2]
[357949958,1744612243342,-545.0,0.00019998,2]
[357949959,1744612243351,-907.0,0.00019998,2]
[357949960,1744612243361,-1279.0,0.00019998,2]
[357949961,1744612243370,-1438.0,0.00019998,2]
[357949962,1744612243381,-630.725,0.00019998,2]
[357949963,1744612243390,-4148.0,0.00019998,2]
[357949964,1744612243400,-1328.0,0.00019998,2]
[357949965,1744612243410,-2559.774,0.00019998,2]
[357949966,1744612243419,-1287.0,0.00019998,2]
[357949967,1744612243429,-2047.0,0.00019998,2]
[357949968,1744612243438,-402.82047754,0.00019999,2]
[357949969,1744612243448,-676.03545945,0.00019999,2]
[357949970,1744612243457,-300.0,0.00019999,2]
[357949971,1744612243467,-2000.0,0.00019999,2]
[357949972,1744612243477,-500.0,0.00019999,2]
[357949973,1744612243486,-500.0,0.00019999,2]
[357949974,1744612243498,-595.54791246,0.00019999,2]
[357949975,1744612243508,-362.3720504,0.00019999,2]
[357949976,1744612243517,-500.0,0.00019999,2]
[357949977,1744612243527,-570.21411542,0.00019999,2]
[357949978,1744612243536,-600.0,0.00019999,2]
[357949979,1744612243550,-600.0,0.00019999,2]
[357949980,1744612243559,-600.0,0.00019999,2]
[357949981,1744612243569,-600.0,0.00019999,2]
[357949982,1744612243578,-537.0,0.0002,2]
[357949983,1744612243588,-117950.06103568,0.0002,2]
[357949984,1744612243597,-262.45863438,0.0002,2]
[357949985,1744612243607,-647500.91489688,0.0002,2]
[357949986,1744612243837,-2335.29685159,0.0002,2]
[357949987,1744612243851,-981.89589485,0.0002,2]
[357949988,1744612243862,-841.95204165,0.0002,2]
[357949989,1744612243872,-1025.06710056,0.0002,2]
[357949990,1744612243887,-220883.04637953,0.0002,2]
[357949991,1744612243904,-152.0,0.00019998,2]
[357949992,1744612243913,-3310.05503581,0.0002,2]
[357949993,1744612243924,-666.0,0.0002,2]
[357949994,1744612244299,-11786.963878,0.0002,2]
[357949995,1744612244311,-9985.903201,0.0002,2]
[357949996,1744612244322,-41960.97114943,0.0002,2]
[357949997,1744612244337,-6171.0,0.0002,2]
[357949998,1744612245213,-860.84323387,0.0002,2]
[357949999,1744612245231,-8132.04,0.0002,2]
[357950002,1744612245441,-6769.85369587,0.0002,2]
[357950003,1744612245453,-3150.73353402,0.0002,2]
[357950004,1744612245601,-2588.29699047,0.0002,2]
[357950005,1744612245612,-690.34280158,0.0002,2]
[357950006,1744612245623,-4997.7066997,0.0002,2]
[357950014,1744612247429,-311.36924551,0.00019178,2]
[357950015,1744612252470,-86.50212914,0.00019178,2]
[357950016,1744612252494,-115.90407776,0.00019178,2]
[357950018,1744612258119,-224.94578397,0.00019,2]
[357950019,1744612262742,-25.05421603,0.00019,2]
[357950020,1744612262766,-127.02479448,0.00019178,2]
[357950021,1744612265636,-245.49112776,0.00019178,2]
[357950022,1744612265664,-4.07009721,0.00019178,2]
[357950023,1744612271300,-151.0,0.00019178,2]
[357950024,1744612275566,-182.24834368,0.00019178,2]
[357950025,1744612279049,-162.68155911,0.00019178,2]
[357950026,1744612279074,-3.18844089,0.00019178,2]